{"text_format":"3","workbook":"xlsx","n_sheets":1,"sheets":["Krevní tlak a hladina cukru"],"not_rendered":{"defined_names":9},"read":"whole","date_system":"1900"}

{"sheet":"Krevní tlak a hladina cukru","index":0,"n_rows":13,"n_cols":11,"rows_kept":13,"merged":[[0,1,4,3],[0,4,0,9],[1,4,1,6],[1,7,1,9]]}
[null,"Sledování krevního tlaku a hladiny cukru",null,null,"V buňkách E2 až J5 níže si můžete přizpůsobit hodnoty stupnice."]
[{"$nulls":4},"KREVNÍ TLAK",null,null,"HLADINA CUKRU V KRVI"]
[{"$nulls":4},120,"SYSTOLICKÝ",140,70,100,150]
[{"$nulls":4},80,"DIASTOLICKÝ",90,"NÍZKÁ","NORMÁLNÍ","VYSOKÁ"]
[{"$nulls":4},"CÍLOVÝ TLAK",null,"VOLAT LÉKAŘI"]
[null,"Datum","Čas","Událost","Systolický","Diastolický","Srdeční tep","Cukr","Hladina","Stav","Poznámky"]
[null,{"$f":"TODAY()","v":"2022-08-04"},"06:00:00","Probuzení",129,79,72,55,{"$f":"BloodPressureAndGlucose[[#This Row],[Cukr]]","v":55},{"$f":"IFERROR(IF(BloodPressureAndGlucose[[#This Row],[Hladina]]=0,\"\",IF(BloodPressureAndGlucose[[#This Row],[Hladina]]<=CNízký,\"Nízká\",IF(AND(BloodPressureAndGlucose[[#This Row],[Hladina]]>CNízký,BloodPressureAndGlucose[[#This Row],[Hladina]]<CVysoký),\"Normální\",\"Vysoká\"))), \"\")","v":"Nízká"}]
[null,{"$f":"TODAY()","v":"2022-08-04"},"07:00:00","Před jídlem",120,80,74,70,{"$f":"BloodPressureAndGlucose[[#This Row],[Cukr]]","v":70},{"$f":"IFERROR(IF(BloodPressureAndGlucose[[#This Row],[Hladina]]=0,\"\",IF(BloodPressureAndGlucose[[#This Row],[Hladina]]<=CNízký,\"Nízká\",IF(AND(BloodPressureAndGlucose[[#This Row],[Hladina]]>CNízký,BloodPressureAndGlucose[[#This Row],[Hladina]]<CVysoký),\"Normální\",\"Vysoká\"))), \"\")","v":"Nízká"}]
[null,"2022-08-04","09:00:00","Po jídle",133,80,75,75,{"$f":"BloodPressureAndGlucose[[#This Row],[Cukr]]","v":75},{"$f":"IFERROR(IF(BloodPressureAndGlucose[[#This Row],[Hladina]]=0,\"\",IF(BloodPressureAndGlucose[[#This Row],[Hladina]]<=CNízký,\"Nízká\",IF(AND(BloodPressureAndGlucose[[#This Row],[Hladina]]>CNízký,BloodPressureAndGlucose[[#This Row],[Hladina]]<CVysoký),\"Normální\",\"Vysoká\"))), \"\")","v":"Normální"}]
[null,"2022-08-04","10:00:00","Jenom krevní tlak",143,91,75,190,{"$f":"BloodPressureAndGlucose[[#This Row],[Cukr]]","v":190},{"$f":"IFERROR(IF(BloodPressureAndGlucose[[#This Row],[Hladina]]=0,\"\",IF(BloodPressureAndGlucose[[#This Row],[Hladina]]<=CNízký,\"Nízká\",IF(AND(BloodPressureAndGlucose[[#This Row],[Hladina]]>CNízký,BloodPressureAndGlucose[[#This Row],[Hladina]]<CVysoký),\"Normální\",\"Vysoká\"))), \"\")","v":"Vysoká"}]
[null,"2022-08-04","12:00:00","Před jídlem",141,84,70,140,{"$f":"BloodPressureAndGlucose[[#This Row],[Cukr]]","v":140},{"$f":"IFERROR(IF(BloodPressureAndGlucose[[#This Row],[Hladina]]=0,\"\",IF(BloodPressureAndGlucose[[#This Row],[Hladina]]<=CNízký,\"Nízká\",IF(AND(BloodPressureAndGlucose[[#This Row],[Hladina]]>CNízký,BloodPressureAndGlucose[[#This Row],[Hladina]]<CVysoký),\"Normální\",\"Vysoká\"))), \"\")","v":"Normální"}]
[null,{"$f":"TODAY()","v":"2022-08-04"},"15:00:00","Po jídle",132,80,68,90,{"$f":"BloodPressureAndGlucose[[#This Row],[Cukr]]","v":90},{"$f":"IFERROR(IF(BloodPressureAndGlucose[[#This Row],[Hladina]]=0,\"\",IF(BloodPressureAndGlucose[[#This Row],[Hladina]]<=CNízký,\"Nízká\",IF(AND(BloodPressureAndGlucose[[#This Row],[Hladina]]>CNízký,BloodPressureAndGlucose[[#This Row],[Hladina]]<CVysoký),\"Normální\",\"Vysoká\"))), \"\")","v":"Normální"},"Užití léku na tlak během jídla"]
[null,"Průměrné hodnoty",null,null,{"$f":"SUBTOTAL(101,BloodPressureAndGlucose[Systolický])","v":133},{"$f":"SUBTOTAL(101,BloodPressureAndGlucose[Diastolický])","v":{"v":82.33333333333333,"d":"82"}},{"$f":"SUBTOTAL(101,BloodPressureAndGlucose[Srdeční tep])","v":{"v":72.33333333333333,"d":"72"}},{"$f":"SUBTOTAL(101,BloodPressureAndGlucose[Cukr])","v":{"v":103.33333333333333,"d":"103"}}]